fUSD/lending_fUSD_20260109
["ID","MTS","AMOUNT","RATE_DAILY","PERIOD"]
[401103626,1767931844076,-1000.0,0.00017995,2]
[401103627,1767931844088,-1000.0,0.00017995,2]
[401103628,1767931844096,-1000.0,0.00017995,2]
[401103629,1767931844105,-500.0,0.00017997,2]
[401103630,1767931844114,-500.0,0.00017997,2]
[401103631,1767931844129,-602.31786917,0.00017997,2]
[401103632,1767931844141,-511.98797605,0.00017997,2]
[401103633,1767931844150,-500.0,0.00017998,2]
[401103634,1767931844159,-500.0,0.00017998,2]
[401103635,1767931844168,-500.0,0.00017998,2]
[401103636,1767931844177,-500.0,0.00017998,2]
[401103637,1767931844186,-150.0,0.00017999,2]
[401103638,1767931844195,-852.88407145,0.00017999,2]
[401103639,1767931844206,-26131.2039973,0.00017999,2]
[401103640,1767931844217,-753006.0061156,0.00017999,2]
[401103641,1767931844228,-300.0,0.00017999,2]
[401103642,1767931844237,-132477.3863808,0.00017999,2]
[401103643,1767931844247,-300.0,0.00017999,2]
[401103644,1767931844256,-666.0,0.00017999,2]
[401103645,1767931844265,-300.0,0.00017999,2]
[401103646,1767931844275,-300.0,0.00017999,2]
[401103647,1767931844284,-300.0,0.00017999,2]
[401103648,1767931844293,-666.0,0.00017999,2]
[401103649,1767931844303,-500.0,0.00017999,2]
[401103650,1767931844312,-500.0,0.00017999,2]
[401103651,1767931844322,-500.0,0.00017999,2]
[401103652,1767931844331,-500.0,0.00017999,2]
[401103653,1767931844340,-500.0,0.00017999,2]
[401103654,1767931844352,-500.0,0.00017999,2]
[401103655,1767931844362,-500.0,0.00017999,2]
[401103656,1767931844371,-370.00714586,0.00017999,2]
[401103657,1767931844382,-357.407217,0.00017999,2]
[401103658,1767931844391,-357.407217,0.00017999,2]
[401103659,1767931844400,-357.407217,0.00017999,2]
[401103660,1767931844409,-357.407217,0.00017999,2]
[401103661,1767931844420,-175.825959,0.00017999,2]
[401103662,1767931844430,-175.825959,0.00017999,2]
[401103663,1767931844439,-151.0,0.00017999,2]
[401103664,1767931844448,-175.825959,0.00017999,2]
[401103665,1767931844458,-151.0,0.00017999,2]
[401103666,1767931844467,-175.825959,0.00017999,2]
[401103667,1767931844476,-151.0,0.00017999,2]
[401103668,1767931844485,-164.028643,0.00017999,2]
[401103669,1767931844494,-164.028643,0.00017999,2]
[401103670,1767931844503,-164.028643,0.00017999,2]
[401103671,1767931844511,-164.028643,0.00017999,2]
[401103672,1767931844521,-210.06325,0.00017999,2]
[401103673,1767931844531,-151.0,0.00017999,2]
[401103674,1767931844540,-300.0,0.00017999,2]
[401103675,1767931844549,-151.0,0.00017999,2]
[401103676,1767931844558,-359.08313245,0.00017999,2]
[401103677,1767931844567,-151.0,0.00017999,2]
[401103678,1767931844576,-819.904894,0.00017999,2]
[401103679,1767931844585,-151.0,0.00017999,2]
[401103680,1767931844594,-666.0,0.00017999,2]
[401103681,1767931844603,-819.904894,0.00017999,2]
[401103682,1767931844612,-819.904894,0.00017999,2]
[401103683,1767931844622,-151.0,0.00017999,2]
[401103684,1767931844631,-819.904894,0.00017999,2]
[401103685,1767931844640,-443.211359,0.00017999,2]
[401103686,1767931844649,-443.211359,0.00017999,2]
[401103687,1767931844658,-443.211359,0.00017999,2]
[401103688,1767931844667,-151.0,0.00017999,2]
[401103689,1767931844676,-458.070284,0.00017999,2]
[401103690,1767931844687,-443.211359,0.00017999,2]
[401103691,1767931844696,-151.0,0.00017999,2]
[401103692,1767931844705,-458.070284,0.00017999,2]
[401103693,1767931844714,-458.070284,0.00017999,2]
[401103694,1767931844723,-1150.718641,0.00017999,2]
[401103695,1767931844732,-458.070284,0.00017999,2]
[401103696,1767931844741,-1150.718641,0.00017999,2]
[401103697,1767931844750,-485.187189,0.00017999,2]
[401103698,1767931844759,-1150.718641,0.00017999,2]
[401103699,1767931844768,-485.187189,0.00017999,2]
[401103700,1767931844777,-1150.718641,0.00017999,2]
[401103701,1767931844786,-485.187189,0.00017999,2]
[401103702,1767931844796,-1749.663834,0.00017999,2]
[401103703,1767931844807,-485.187189,0.00017999,2]
[401103704,1767931844818,-1749.663834,0.00017999,2]
[401103705,1767931844828,-1290.672977,0.00017999,2]
[401103706,1767931844837,-1749.663834,0.00017999,2]
[401103707,1767931844846,-1290.672977,0.00017999,2]
[401103708,1767931844856,-1749.663834,0.00017999,2]
[401103709,1767931844864,-1290.672977,0.00017999,2]
[401103710,1767931844873,-1290.672977,0.00017999,2]
[401103711,1767931844883,-1158.833905,0.00017999,2]
[401103712,1767931844892,-1158.833905,0.00017999,2]
[401103713,1767931844901,-1158.833905,0.00017999,2]
[401103714,1767931844910,-150.0,0.00017999,2]
[401103715,1767931844919,-1158.833905,0.00017999,2]
[401103716,1767931844928,-151.0,0.00017999,2]
[401103717,1767931844937,-151.0,0.00017999,2]
[401103718,1767931844946,-151.0,0.00017999,2]
[401103719,1767931844955,-198.491542,0.00017999,2]
[401103720,1767931844964,-198.491542,0.00017999,2]
[401103721,1767931844973,-192.18303,0.00017999,2]
[401103722,1767931844982,-495.519211,0.00017999,2]
[401103723,1767931844991,-198.491542,0.00017999,2]
[401103724,1767931845000,-198.491542,0.00017999,2]
[401103725,1767931845009,-495.519211,0.00017999,2]
[401103726,1767931845018,-495.519211,0.00017999,2]
[401103727,1767931845027,-495.519211,0.00017999,2]
[401103728,1767931845037,-151.0,0.00017999,2]
[401103729,1767931845047,-5133.456017,0.00017999,2]
[401103730,1767931845057,-5133.456017,0.00017999,2]
[401103731,1767931845066,-415.268044,0.00017999,2]
[401103732,1767931845075,-5133.456017,0.00017999,2]
[401103733,1767931845084,-415.268044,0.00017999,2]
[401103734,1767931845094,-5133.456017,0.00017999,2]
[401103735,1767931845103,-371.425842,0.00017999,2]
[401103736,1767931845114,-415.268044,0.00017999,2]
[401103737,1767931845124,-371.425842,0.00017999,2]
[401103738,1767931845134,-415.268044,0.00017999,2]
[401103739,1767931845149,-151.0,0.00017999,2]
[401103740,1767931845169,-207.708394,0.00017999,2]
[401103741,1767931845178,-371.425842,0.00017999,2]
[401103742,1767931845187,-159.367045,0.00017999,2]
[401103743,1767931845197,-371.425842,0.00017999,2]
[401103744,1767931845207,-151.0,0.00017999,2]
[401103745,1767931845217,-151.0,0.00017999,2]
[401103746,1767931845226,-1778.71196,0.00017999,2]
[401103747,1767931845236,-1778.71196,0.00017999,2]
[401103748,1767931845245,-1778.71196,0.00017999,2]
[401103749,1767931845254,-1778.71196,0.00017999,2]
[401103750,1767931845266,-2472.961077,0.00017999,2]
[401103751,1767931845279,-2472.961077,0.00017999,2]
[401103752,1767931845300,-2472.961077,0.00017999,2]
[401103753,1767931845320,-187.66246,0.00017999,2]
[401103754,1767931845334,-2472.961077,0.00017999,2]
[401103755,1767931845345,-187.66246,0.00017999,2]
[401103756,1767931845358,-187.66246,0.00017999,2]
[401103757,1767931845367,-187.66246,0.00017999,2]
[401103758,1767931845376,-2570.137715,0.00017999,2]
[401103759,1767931845387,-2570.137715,0.00017999,2]
[401103760,1767931845397,-2570.137715,0.00017999,2]
[401103761,1767931845407,-2570.137715,0.00017999,2]
[401103762,1767931845417,-151.0,0.00017999,2]
[401103763,1767931845430,-151.0,0.00017999,2]
[401103764,1767931845440,-151.0,0.00017999,2]
[401103765,1767931845449,-151.0,0.00017999,2]
[401103766,1767931845459,-151.0,0.00017999,2]
[401103767,1767931845468,-151.0,0.00017999,2]
[401103768,1767931845478,-1092.184898,0.00017999,2]
[401103769,1767931845487,-158.022051,0.00017999,2]
[401103770,1767931845496,-1092.184898,0.00017999,2]
[401103771,1767931845505,-2412.934915,0.00017999,2]
[401103772,1767931845515,-1092.184898,0.00017999,2]
[401103773,1767931845524,-2412.934915,0.00017999,2]
[401103774,1767931845534,-1092.184898,0.00017999,2]
[401103775,1767931845543,-2412.934915,0.00017999,2]
[401103776,1767931845553,-344.975399,0.00017999,2]
[401103777,1767931845562,-2412.934915,0.00017999,2]
[401103778,1767931845572,-344.975399,0.00017999,2]
[401103779,1767931845581,-228.842776,0.00017999,2]
[401103780,1767931845591,-251.826954,0.00017999,2]
[401103781,1767931845600,-344.975399,0.00017999,2]
[401103782,1767931845610,-228.842776,0.00017999,2]
[401103783,1767931845619,-344.975399,0.00017999,2]
[401103784,1767931845630,-228.842776,0.00017999,2]
[401103785,1767931845639,-1021.65153,0.00017999,2]
[401103786,1767931845649,-228.842776,0.00017999,2]
[401103787,1767931845658,-529.205152,0.00017999,2]
[401103788,1767931845667,-1021.65153,0.00017999,2]
[401103789,1767931845676,-183.8943423,0.00017999,2]
[401103790,1767931845685,-435877.19238816,0.00018,2]
[401103791,1767931845718,-534.2,0.00018,2]
[401103796,1767932026014,643.33147301,0.000226,120]
[401103797,1767932448699,432.7386959,0.000226,120]
[401103805,1767932791124,-187.53039165,0.00013709,2]
[401103809,1767932849746,-910.09960835,0.00013709,2]
[401103810,1767932849768,-3841.5,0.00013778,2]
[401103811,1767932849791,-1389.57,0.00013793,2]
[401103812,1767932849812,-300.0,0.00014058,2]
[401103813,1767932849834,-150.0,0.00014058,2]
[401103814,1767932849855,-1200.0,0.00014059,2]
[401103815,1767932849880,-500.0,0.00014059,2]
[401103816,1767932849906,-500.0,0.00014059,2]
[401103817,1767932849931,-500.0,0.00014059,2]
[401103818,1767932849955,-500.0,0.00014059,2]
[401103819,1767932849979,-500.0,0.00014059,2]
[401103820,1767932850004,-500.0,0.00014059,2]
[401103821,1767932850029,-500.0,0.00014059,2]
[401103822,1767932850053,-500.0,0.00014059,2]
[401103823,1767932850077,-500.0,0.00014059,2]
[401103824,1767932850102,-500.0,0.00014059,2]
[401103825,1767932850128,-500.0,0.00014059,2]
[401103826,1767932850152,-500.0,0.00014059,2]
[401103827,1767932850185,-500.0,0.00014059,2]
[401103828,1767932850214,-500.0,0.00014059,2]
[401103829,1767932850242,-500.0,0.00014059,2]
[401103830,1767932850269,-500.0,0.00014059,2]
[401103831,1767932850296,-483.73323409,0.00014059,2]
[401103832,1767932850324,-500.0,0.00014059,2]
[401103833,1767932850349,-500.0,0.00014059,2]
[401103834,1767932850375,-500.0,0.00014059,2]
[401103835,1767932850404,-500.0,0.00014059,2]
[401103836,1767932850431,-500.0,0.00014059,2]
[401103837,1767932850457,-500.0,0.00014059,2]
[401103838,1767932850484,-500.0,0.00014059,2]
[401103839,1767932850510,-500.0,0.00014059,2]
[401103840,1767932850536,-500.0,0.00014059,2]
[401103841,1767932850562,-500.0,0.00014059,2]
[401103842,1767932850589,-618.85825578,0.00014059,2]
[401103843,1767932850615,-235.42869508,0.00014059,2]
[401103844,1767932850651,-184.9022771,0.0001406,2]
[401103845,1767932850678,-411.03712075,0.0001406,2]
[401103846,1767932850702,-368.38171661,0.0001406,2]
[401103847,1767932850724,-500.0,0.0001406,2]
[401103848,1767932850747,-172.91560699,0.0001406,2]
[401103849,1767932850770,-500.0,0.0001406,2]
[401103850,1767932850792,-171.30355053,0.0001406,2]
[401103851,1767932850814,-500.0,0.0001406,2]
[401103852,1767932850836,-167.95614169,0.0001406,2]
[401103853,1767932850858,-180.03364531,0.0001406,2]
[401103854,1767932850885,-250.0,0.00014061,2]
[401103855,1767932850908,-9464.28014772,0.00014061,2]
[401103867,1767933031796,-187.03484206,0.0001391,2]
[401103868,1767933031805,-281.45868937,0.00013935,2]
[401103869,1767933031815,-3519.37357012,0.0001395,2]
[401103870,1767933031827,-454.55387908,0.0001395,2]
[401103871,1767933031838,-3215.8225508,0.0001395,2]
[401103872,1767933031847,-2862.27200635,0.0001395,2]
[401103876,1767933032208,-1066.25609508,0.0001395,2]
[401103877,1767933032230,-3261.22189857,0.0001395,2]
[401103878,1767933032240,-1200.0,0.00013959,2]
[401103879,1767933032250,-150.0,0.00013959,2]
[401103880,1767933032259,-441.15303351,0.0001396,2]
[401103881,1767933032270,-71.80171582,0.0001396,2]
[401103882,1767933032279,-8439.39828418,0.0001396,2]
[401103883,1767933032291,-746.38494948,0.0001396,2]
[401103884,1767933032304,-300.0,0.0001396,2]
[401103885,1767933032317,-2144.44612092,0.0001396,2]
[401103886,1767933032339,-2141.27329945,0.0001396,2]
[401103887,1767933032360,-2008.0,0.0001396,2]
[401103888,1767933032371,-8613.21162498,0.0001396,2]
[401103907,1767933038178,-6874.25630636,0.0001391,2]
[401103909,1767933038187,-106038.14661889,0.0001396,2]
[401103912,1767933038198,-1766.48536611,0.0001396,2]
[401103915,1767933038217,-4908.7319859,0.0001396,2]
[401104087,1767933039974,-634.05151192,0.0001396,2]
[401104094,1767933040027,-862259.87023817,0.0001396,2]
[401104096,1767933040036,-2500.0,0.0001401,2]
[401104098,1767933040045,-500.0,0.0001406,2]
[401104100,1767933040054,-500.0,0.0001406,2]
[401104102,1767933040063,-500.0,0.0001406,2]
[401104104,1767933040071,-298.86491239,0.0001406,2]
[401104106,1767933040081,-40957.98985228,0.00014061,2]
[401104108,1767933040089,-2500.0,0.00014074,2]
[401104110,1767933040098,-1000.0,0.00014161,2]
[401104112,1767933040107,-916.3016,0.00014161,2]
[401104114,1767933040116,-2500.0,0.00014161,2]
[401104116,1767933040125,-3240.0,0.00014189,2]
[401104118,1767933040135,-876.83835162,0.00014215,2]
[401104120,1767933040144,-150.0,0.00014241,2]
[401104122,1767933040154,-418.9925927,0.0001425,2]
[401104124,1767933040163,-151.0,0.00014253,2]
[401104126,1767933040172,-151.0,0.00014253,2]
[401104128,1767933040181,-151.0,0.00014253,2]
[401104130,1767933040190,-151.0,0.00014253,2]
[401104132,1767933040199,-151.0,0.00014253,2]
[401104134,1767933040208,-151.0,0.00014253,2]
[401104136,1767933040217,-151.0,0.00014253,2]
[401104138,1767933040226,-151.0,0.00014253,2]
[401104140,1767933040235,-151.0,0.00014253,2]
[401104142,1767933040244,-151.0,0.00014253,2]
[401104144,1767933040253,-151.0,0.00014253,2]
[401104145,1767933040261,-161.11111054,0.00014253,2]
[401104147,1767933040270,-200.0,0.00014253,2]
[401104149,1767933040279,-688.232,0.00014253,2]
[401104151,1767933040287,-287.72598453,0.00014259,2]
[401104153,1767933040296,-500.0,0.00014259,2]
[401104155,1767933040305,-257.86720163,0.00014259,2]
[401104157,1767933040314,-500.0,0.00014259,2]
[401104158,1767933040323,-167.56929918,0.00014259,2]
[401104160,1767933040332,-3998.41340062,0.0001426,2]
[401104162,1767933040341,-512.07811701,0.0001426,2]
[401104164,1767933040350,-500.0,0.0001426,2]
[401104166,1767933040359,-500.0,0.0001426,2]
[401104168,1767933040368,-500.0,0.0001426,2]
[401104170,1767933040377,-500.0,0.0001426,2]
[401104172,1767933040387,-14635.4537278,0.0001426,2]
[401104174,1767933040396,-532.52780777,0.0001426,2]
[401104176,1767933040405,-500.0,0.0001426,2]
[401104178,1767933040414,-500.0,0.0001426,2]
[401104180,1767933040425,-500.0,0.0001426,2]
[401104182,1767933040434,-500.0,0.0001426,2]
[401104184,1767933040443,-500.0,0.0001426,2]
[401104186,1767933040451,-511.98797605,0.0001426,2]
[401104188,1767933040460,-500.0,0.0001426,2]
[401104190,1767933040469,-1852.42,0.00014315,2]
[401104192,1767933040479,-6874.25630632,0.00014353,2]
[401104194,1767933040488,-173.84541141,0.0001436,2]
[401104196,1767933040497,-1000.0,0.00014367,2]
[401104198,1767933040506,-500.0,0.0001446,2]
[401104200,1767933040515,-500.0,0.0001446,2]
[401104202,1767933040524,-500.0,0.0001446,2]
[401104204,1767933040533,-500.0,0.0001446,2]
[401104206,1767933040542,-500.0,0.0001446,2]
[401104208,1767933040551,-500.0,0.0001446,2]
[401104210,1767933040561,-3841.5,0.00014467,2]
[401104212,1767933040570,-598.6061789,0.00014534,2]
[401104214,1767933040579,-876.83835158,0.00014624,2]
[401104216,1767933040590,-500.0,0.00014763,2]
[401104218,1767933040599,-500.0,0.00014763,2]
[401104220,1767933040610,-500.0,0.00014763,2]
[401104222,1767933040620,-411.48679408,0.00014763,2]
[401104224,1767933040629,-500.0,0.00014763,2]
[401104226,1767933040638,-500.0,0.00014763,2]
[401104228,1767933040648,-503.2370208,0.00014763,2]
[401104230,1767933040657,-502.14927888,0.00014763,2]
[401104232,1767933040666,-12898.63,0.00014784,2]
[401104234,1767933040675,-716.87,0.0001491,2]
[401104236,1767933040684,-5014.92,0.00014999,2]
[401104238,1767933040694,-2045.55280214,0.00015,2]
[401104240,1767933040703,-1209.0686268,0.00015,2]
[401104242,1767933040715,-169.94,0.00015,2]
[401104244,1767933040724,-16557.80898367,0.00015,2]
[401104246,1767933040733,-22970.4509711,0.00015,2]
[401104248,1767933040742,-876.83835158,0.00015034,2]
[401104249,1767933040752,-255.0,0.00015076,2]
[401104251,1767933040761,-505.0,0.00015123,2]
[401104254,1767933040770,-3841.5,0.00015156,2]
[401104255,1767933040780,-250.0,0.00015301,2]
[401104258,1767933040790,-500.93632918,0.0001531,2]
[401104260,1767933040799,-1003.57869297,0.0001531,2]
[401104261,1767933040808,-1000.0,0.0001531,2]
[401104263,1767933040818,-1000.0,0.0001531,2]
[401104265,1767933040827,-599.35467002,0.0001531,2]
[401104267,1767933040836,-1680.0,0.00015355,2]
[401104269,1767933040845,-2500.0,0.00015356,2]
[401104271,1767933040854,-151.0,0.00015374,2]
[401104273,1767933040863,-151.0,0.00015374,2]
[401104275,1767933040872,-507.09614172,0.000154,2]
[401104277,1767933040880,-876.83835158,0.00015443,2]
[401104279,1767933040889,-1389.57,0.00015517,2]
[401104281,1767933040898,-3841.5,0.00015845,2]
[401104283,1767933040907,-876.83835158,0.00015853,2]
[401104285,1767933040916,-1500.0,0.00015858,2]
[401104287,1767933040925,-1500.0,0.00015858,2]
[401104289,1767933040934,-1000.0,0.00015929,2]
[401104291,1767933040943,-206.86777706,0.0001599,2]
[401104293,1767933040952,-11747.99161032,0.00016,2]
[401104295,1767933040961,-425.33,0.00016004,2]
[401104297,1767933040970,-565.22,0.0001607,2]
[401104299,1767933040980,-171.35,0.00016088,2]
[401104301,1767933040988,-1258.07,0.00016104,2]
[401104336,1767933041291,-160.35,0.00016108,2]
[401104338,1767933041303,-9999.99,0.00016116,2]
[401104340,1767933041313,-150.99,0.00016116,2]
[401104342,1767933041323,-9999.99,0.00016116,2]
[401104344,1767933041332,-999.99,0.00016116,2]
[401104346,1767933041341,-4336.36,0.00016119,2]
[401104348,1767933041349,-1000.0,0.00016162,2]
[401104350,1767933041358,-5000.00316938,0.000162,5]
[401104352,1767933041367,-876.83835158,0.00016262,2]
[401104354,1767933041376,-433.0,0.00016277,2]
[401104356,1767933041386,-200.0,0.0001634,2]
[401104358,1767933041397,-976.09266988,0.00016406,2]
[401104360,1767933041407,-2000.0,0.00016406,2]
[401104362,1767933041417,-1000.0,0.00016421,2]
[401104364,1767933041427,-971.36,0.00016421,2]
[401104366,1767933041436,-500.0,0.00016438,2]
[401104368,1767933041445,-500.0,0.00016438,2]
[401104370,1767933041455,-500.0,0.00016438,2]
[401104372,1767933041463,-500.0,0.00016438,2]
[401104374,1767933041472,-500.0,0.00016438,2]
[401104376,1767933041482,-500.0,0.00016438,2]
[401104378,1767933041492,-500.0,0.00016438,2]
[401104380,1767933041502,-500.0,0.00016438,2]
[401104382,1767933041511,-500.0,0.00016438,2]
[401104384,1767933041521,-500.0,0.00016438,2]
[401104386,1767933041530,-322.92952326,0.00016438,2]
[401104388,1767933041539,-1590.0,0.00016438,2]
[401104390,1767933041548,-300.0,0.00016438,2]
[401104392,1767933041557,-300.0,0.00016438,2]
[401104394,1767933041566,-300.0,0.00016438,2]
[401104396,1767933041575,-300.0,0.00016438,2]
[401104398,1767933041585,-300.0,0.00016438,2]
[401104400,1767933041594,-300.0,0.00016438,2]
[401104402,1767933041603,-300.0,0.00016438,2]
[401104404,1767933041612,-371.96837686,0.00016438,2]
[401104406,1767933041622,-500.0,0.00016438,2]
[401104408,1767933041631,-500.0,0.00016438,2]
[401104410,1767933041639,-500.0,0.00016438,2]
[401104412,1767933041648,-500.0,0.00016438,2]
[401104414,1767933041657,-500.0,0.00016438,2]
[401104416,1767933041667,-500.0,0.00016438,2]
[401104418,1767933041676,-500.0,0.00016438,2]
[401104420,1767933041685,-500.0,0.00016438,2]
[401104422,1767933041694,-500.0,0.00016438,2]
[401104424,1767933041704,-500.0,0.00016438,2]
[401104426,1767933041717,-500.0,0.00016438,2]
[401104428,1767933041726,-500.0,0.00016438,2]
[401104430,1767933041735,-500.0,0.00016438,2]
[401104432,1767933041746,-500.0,0.00016438,2]
[401104434,1767933041755,-500.0,0.00016438,2]
[401104436,1767933041764,-500.0,0.00016438,2]
[401104438,1767933041773,-500.0,0.00016438,2]
[401104440,1767933041783,-500.0,0.00016438,2]
[401104442,1767933041793,-500.0,0.00016438,2]
[401104444,1767933041802,-500.0,0.00016438,2]
[401104446,1767933041811,-500.0,0.00016438,2]
[401104448,1767933041820,-618.59480939,0.00016438,2]
[401104450,1767933041830,-500.0,0.00016438,2]
[401104452,1767933041839,-23827.76,0.00016438,2]
[401104454,1767933041848,-876.0,0.00016438,2]
[401104456,1767933041857,-802.78621934,0.00016438,2]
[401104458,1767933041865,-1000.0,0.00016527,2]
[401104460,1767933041874,-3841.5,0.00016534,2]
[401104462,1767933041883,-359.61007335,0.000166,2]
[401104464,1767933041892,-876.83835158,0.00016672,2]
[401104466,1767933041901,-1590.0,0.00016712,2]
[401104468,1767933041910,-158.57,0.00016712,2]
[401104469,1767933041918,-469.60768673,0.00016748,2]
[401104470,1767933041927,-16740.34959736,0.00016777,2]
[401104471,1767933041936,-2351.0,0.00016891,2]
[401104472,1767933041945,-1010.61780389,0.00016954,2]
[401104473,1767933041954,-1590.0,0.00016986,2]
[401104474,1767933041963,-2000.61975215,0.00016989,2]
[401104475,1767933041972,-157.05333065,0.00016992,2]
[401104476,1767933041981,-250.0,0.00017,2]
[401104477,1767933041990,-419.81,0.00017,2]
[401104478,1767933041998,-160.0,0.00017,2]
[401104479,1767933042007,-2210.0,0.00017026,2]
[401104480,1767933042016,-2210.0,0.00017065,2]
[401104481,1767933042024,-876.83835158,0.00017081,2]
[401104482,1767933042033,-157.78803463,0.00017088,2]
[401104483,1767933042042,-1020.08839075,0.00017099,2]
[401104484,1767933042052,-980.46577781,0.00017099,2]
[401104486,1767933042061,-3413.39431629,0.00017099,2]
[401104488,1767933042070,-1247.59056919,0.00017099,2]
[401104490,1767933042079,-322.6107,0.00017099,2]
[401104492,1767933042088,-553.64373807,0.00017099,2]
[401104494,1767933042097,-2000.0,0.00017099,2]
[401104496,1767933042106,-1500.0,0.00017099,2]
[401104498,1767933042115,-2000.0,0.00017099,2]
[401104501,1767933042128,-1500.0,0.00017099,2]
[401104503,1767933042138,-1628.02313146,0.00017099,2]
[401104505,1767933042147,-1500.0,0.00017099,2]
[401104507,1767933042156,-620.0,0.00017099,2]
[401104509,1767933042165,-1500.0,0.00017099,2]
[401104511,1767933042175,-817.14196005,0.00017099,2]
[401104513,1767933042184,-1500.0,0.00017099,2]
[401104515,1767933042193,-250.0,0.00017099,2]
[401104516,1767933042202,-1500.0,0.00017099,2]
[401104517,1767933042212,-250.0,0.00017099,2]
[401104518,1767933042221,-1500.0,0.00017099,2]
[401104519,1767933042231,-250.0,0.00017099,2]
[401104521,1767933042240,-621.78361711,0.00017099,2]
[401104523,1767933042249,-250.0,0.00017099,2]
[401104525,1767933042258,-250.0,0.00017099,2]
[401104527,1767933042267,-250.0,0.00017099,2]
[401104529,1767933042276,-1771.03382657,0.00017099,2]
[401104531,1767933042285,-250.0,0.00017099,2]
[401104533,1767933042294,-270.69457066,0.00017099,2]
[401104535,1767933042303,-500.0,0.00017099,2]
[401104537,1767933042314,-500.0,0.00017099,2]
[401104539,1767933042326,-500.0,0.00017099,2]
[401104541,1767933042336,-500.0,0.00017099,2]
[401104543,1767933042346,-500.0,0.00017099,2]
[401104545,1767933042356,-500.0,0.00017099,2]
[401104547,1767933042365,-500.0,0.00017099,2]
[401104549,1767933042374,-264.02807282,0.00017099,2]
[401104551,1767933042384,-500.0,0.00017099,2]
[401104553,1767933042393,-500.0,0.00017099,2]
[401104555,1767933042403,-500.0,0.00017099,2]
[401104557,1767933042412,-500.0,0.00017099,2]
[401104559,1767933042421,-481.23946277,0.00017099,2]
[401104562,1767933042434,-151.0,0.00017099,2]
[401104564,1767933042444,-578.20924308,0.00017099,2]
[401104566,1767933042453,-500.0,0.00017099,2]
[401104568,1767933042463,-500.0,0.00017099,2]
[401104570,1767933042472,-500.0,0.00017099,2]
[401104572,1767933042482,-500.0,0.00017099,2]
[401104574,1767933042491,-500.0,0.00017099,2]
[401104576,1767933042501,-500.0,0.00017099,2]
[401104578,1767933042510,-500.0,0.00017099,2]
[401104580,1767933042524,-500.0,0.00017099,2]
[401104582,1767933042533,-500.0,0.00017099,2]
[401104584,1767933042543,-500.0,0.00017099,2]
[401104587,1767933042552,-353.83614123,0.00017099,2]
[401104590,1767933042562,-334.5472959,0.00017099,2]
[401104594,1767933042572,-1000.0,0.00017124,2]
[401104597,1767933042582,-2210.0,0.00017171,2]
[401104600,1767933042591,-200.0,0.00017174,2]
[401104602,1767933042601,-2210.0,0.00017235,2]
[401104604,1767933042611,-1389.57,0.00017241,2]
[401104606,1767933042621,-1590.0,0.0001726,2]
[401104608,1767933042631,-2210.0,0.00017272,2]
[401104610,1767933042640,-1000.0,0.000174,2]
[401104612,1767933042650,-2210.0,0.00017463,2]
[401104614,1767933042659,-2210.0,0.00017482,2]
[401104616,1767933042669,-876.83835158,0.00017491,2]
[401104618,1767933042678,-2210.0,0.00017493,2]
[401104620,1767933042688,-1601.1452557,0.000175,2]
[401104622,1767933042698,-5530.0,0.000175,3]
[401104624,1767933042710,-12082.44977715,0.000175,2]
[401104627,1767933042724,-168.0,0.00017521,2]
[401104629,1767933042734,-1590.0,0.00017534,2]
[401104631,1767933042744,-168.0,0.00017566,2]